bitfinex-derivatives/quotes_SOLF0:USTF0_20241016
["timestamp","ask_amount","ask_price","bid_price","bid_amount"]
[1729058407279,3.2433,154.17,154.16,1.0]
[1729058408083,12.1933,154.17,154.16,1.0]
[1729058408282,3.2433,154.17,154.16,1.0]
[1729058410479,12.1933,154.17,154.16,1.0]
[1729058411184,8.95,154.17,154.12,1.0]
[1729058411383,8.95,154.15,154.12,1.0]
[1729058411789,3.2441,154.14,154.12,1.0]
[1729058412184,3.2441,154.13,154.12,1.0]
[1729058414082,12.1941,154.13,154.12,1.0]
[1729058414585,2.8031,154.17,154.08,1.0]
[1729058414586,8.95,154.12,154.08,1.0]
[1729058414989,3.245,154.09,154.08,1.0]
[1729058416578,12.195,154.09,154.08,1.0]
[1729058418297,12.195,154.09,154.03,1.0]
[1729058418298,3.246,154.04,154.03,1.0]
[1729058418889,4.66,154.06,154.03,1.0]
[1729058419592,8.95,154.06,154.03,1.0]
[1729058420588,3.246,154.04,154.03,1.0]
[1729058421990,8.95,154.06,154.03,1.0]
[1729058422192,3.2458,154.05,154.03,1.0]
[1729058422588,3.2458,154.06,154.03,1.0]
[1729058422792,13.61,154.07,154.03,1.0]
[1729058423194,12.1954,154.07,154.03,9.95]
[1729058423497,3.2454,154.07,154.03,9.95]
[1729058424394,3.2454,154.07,154.03,13.1962]
[1729058424798,3.2458,154.06,154.03,1.0]
[1729058427298,8.95,154.07,154.03,1.0]
[1729058427598,8.95,154.05,154.03,1.0]
[1729058428696,8.95,154.07,154.03,1.0]
[1729058428899,3.2456,154.06,154.03,1.0]
[1729058429393,3.2458,154.05,154.03,1.0]
[1729058429696,8.95,154.08,154.03,9.95]
[1729058430085,3.2452,154.08,154.05,8.95]
[1729058430291,3.2452,154.08,154.03,1.0]
[1729058430292,4.66,154.11,154.06,8.95]
[1729058430695,3.245,154.09,154.06,8.95]
[1729058432609,8.95,154.08,154.03,1.0]
[1729058433102,8.95,154.06,154.03,1.0]
[1729058433607,3.246,154.05,154.03,1.0]
[1729058436701,8.95,154.09,154.04,8.95]
[1729058436907,3.2455,154.07,154.04,12.196]
[1729058439007,8.95,154.1,154.05,3.2457]
[1729058439299,8.95,154.1,154.06,8.95]
[1729058439491,3.245,154.09,154.06,8.95]
[1729058440098,8.95,154.1,154.06,8.95]
[1729058441095,8.95,154.09,154.03,1.0]
[1729058441290,8.95,154.09,154.04,8.95]
[1729058441493,12.195,154.09,154.05,3.2457]
[1729058441798,13.61,154.12,154.07,8.95]
[1729058442806,3.2447,154.11,154.07,12.1953]
[1729058444401,8.95,154.12,154.07,12.1953]
[1729058444402,3.2448,154.1,154.07,12.1953]
[1729058445405,4.66,154.13,154.07,12.1953]
[1729058445602,4.66,154.15,154.09,8.95]
[1729058445802,13.61,154.15,154.09,8.95]
[1729058446006,8.95,154.15,154.11,8.95]
[1729058446202,12.1937,154.16,154.11,8.95]
[1729058446909,12.1937,154.16,154.12,3.2443]
[1729058449211,3.2437,154.15,154.11,12.1945]
[1729058449411,8.95,154.15,154.07,4.66]
[1729058449607,8.95,154.15,154.09,8.95]
[1729058450008,3.2443,154.13,154.09,12.1948]
[1729058450398,3.2443,154.13,154.09,8.95]
[1729058450710,3.2443,154.13,154.1,3.2447]
[1729058451909,4.66,154.18,154.1,8.95]
[1729058452208,8.95,154.16,154.1,8.95]
[1729058452511,3.2439,154.15,154.11,3.2445]
[1729058460913,4.66,154.18,154.11,3.2445]
[1729058460914,3.2432,154.18,154.14,3.2438]
[1729058461119,8.95,154.19,154.14,12.1938]
[1729058461320,8.95,154.19,154.14,8.95]
[1729058462214,3.2436,154.16,154.12,16.3371]
[1729058462415,8.95,154.16,154.12,1.413]
[1729058462917,8.95,154.16,154.11,3.2445]
[1729058463418,3.2439,154.14,154.11,3.2445]
[1729058463714,8.95,154.17,154.12,12.1943]
[1729058464120,8.95,154.16,154.11,8.95]
[1729058464911,3.2439,154.15,154.12,3.2443]
[1729058466217,3.2445,154.12,154.09,3.2449]
[1729058467420,3.2446,154.11,154.08,16.855]
[1729058468419,3.2446,154.11,154.08,12.195]
[1729058469827,8.95,154.1,153.95,1.0]
[1729058470022,3.2453,154.08,154.04,13.61]
[1729058470523,8.95,154.1,154.04,13.61]
[1729058470718,8.95,154.1,154.05,3.2458]
[1729058471922,8.95,154.1,154.05,12.1958]
[1729058472424,3.2452,154.08,154.05,12.1958]
[1729058473331,8.95,154.13,154.07,8.95]
[1729058473524,8.95,154.13,154.09,8.95]
[1729058474321,4.66,154.15,154.1,3.2447]
[1729058474322,13.61,154.15,154.1,3.2447]
[1729058474526,13.61,154.15,154.09,8.95]
[1729058475026,3.2444,154.12,154.09,8.95]
[1729058477427,3.2444,154.12,154.09,12.1948]
[1729058477623,3.2442,154.13,154.1,8.95]
[1729058477830,8.95,154.16,154.11,12.1944]
[1729058478132,8.95,154.16,154.11,8.95]
[1729058478426,3.2438,154.15,154.13,8.95]
[1729058480327,4.66,154.18,154.14,8.95]
[1729058480828,7.9031,154.18,154.14,12.1938]
[1729058482035,3.2431,154.18,154.14,12.1938]
[1729058482535,3.2433,154.17,154.14,8.95]
[1729058482725,8.95,154.16,154.12,4.66]
[1729058483029,3.2439,154.15,154.11,8.95]
[1729058483221,8.95,154.15,154.11,3.2445]
[1729058483422,8.95,154.14,154.1,4.64]
[1729058483630,4.64,154.17,154.1,4.64]
[1729058483631,8.95,154.13,154.1,4.64]
[1729058483827,12.1941,154.13,154.1,4.64]
[1729058484833,8.95,154.13,154.09,1.3821]
[1729058485034,8.95,154.1,154.08,4.64]
[1729058485738,12.1949,154.1,154.06,3.2455]
[1729058486330,12.1949,154.1,154.05,13.61]
[1729058486331,8.95,154.1,154.05,13.61]
[1729058486633,3.2452,154.09,154.05,13.61]
[1729058486835,8.95,154.1,154.05,13.61]
[1729058487043,4.66,154.13,154.05,13.61]
[1729058487044,8.95,154.09,154.05,4.66]
[1729058488042,3.2452,154.08,154.05,3.2458]
[1729058488233,8.95,154.07,154.04,4.66]
[1729058488739,12.1954,154.07,154.04,4.66]
[1729058489436,3.2454,154.07,154.04,7.906]
[1729058491739,4.66,154.13,154.06,3.2456]
[1729058491740,8.95,154.1,154.06,3.2456]
[1729058491935,8.95,154.1,154.05,8.95]
[1729058492542,12.1949,154.1,154.06,3.2455]
[1729058493342,12.1951,154.09,154.06,3.2455]
[1729058494631,3.2451,154.09,154.06,3.2455]
[1729058496136,8.95,154.1,154.03,1.0]
[1729058496340,3.2453,154.08,154.04,12.1959]
[1729058496546,8.95,154.09,154.04,3.2459]
[1729058496736,8.95,154.07,154.03,9.95]
[1729058497641,12.1955,154.07,154.03,13.1961]
[1729058498145,8.95,154.07,154.03,13.1961]
[1729058498343,3.2456,154.06,154.03,13.1961]
[1729058498847,12.1955,154.07,154.03,13.1961]
[1729058500550,12.1955,154.07,154.03,9.95]
[1729058500845,12.1955,154.07,154.04,3.246]
[1729058501140,12.1955,154.07,154.03,9.95]
[1729058501345,12.1955,154.07,154.03,13.1961]
[1729058501939,12.1955,154.07,154.03,9.95]
[1729058502143,3.2455,154.07,154.04,3.246]
[1729058502942,7.11010002,154.16,154.04,8.95]
[1729058503152,3.2449,154.1,154.06,8.95]
[1729058503650,3.245,154.09,154.06,12.1955]
[1729058503848,3.245,154.09,154.03,1.0]
[1729058503849,12.195,154.09,154.04,8.95]
[1729058504049,8.95,154.09,154.04,8.95]
[1729058504455,3.2452,154.08,154.05,3.2457]
[1729058506252,3.2447,154.11,154.06,12.1954]
[1729058506447,8.95,154.13,154.07,8.95]
[1729058506848,8.95,154.13,154.07,12.1953]
[1729058508248,3.2445,154.12,154.09,3.2449]
[1729058508463,8.95,154.15,154.09,8.95]
[1729058508851,3.2441,154.14,154.1,3.2446]
[1729058509360,8.95,154.15,154.1,3.2446]
[1729058510455,3.2442,154.13,154.1,3.2446]
[1729058513465,3.2439,154.14,154.11,3.2445]
[1729058516171,3.2438,154.15,154.12,3.2442]
[1729058516369,3.7782,154.21,154.13,8.95]
[1729058516567,8.95,154.18,154.13,8.95]
[1729058517366,3.2435,154.17,154.14,3.2438]
[1729058519076,8.95,154.15,154.11,1.4512]
[1729058519276,8.95,154.15,154.11,6.0912]
[1729058520571,3.2441,154.14,154.11,9.3357]
[1729058520878,3.2441,154.14,154.11,7.8845]
[1729058521176,8.95,154.15,154.12,3.2442]
[1729058521177,12.1938,154.15,154.12,3.2442]
[1729058521583,3.2438,154.15,154.12,3.2442]
[1729058521765,3.2438,154.15,154.12,12.1942]
[1729058522974,3.244,154.14,154.11,16.8345]
[1729058523178,3.244,154.14,154.11,7.8845]
[1729058526685,8.95,154.14,154.1,4.64]
[1729058526985,8.95,154.11,154.07,4.64]
[1729058527183,12.1945,154.11,154.08,3.245]
[1729058529576,8.95,154.11,154.08,3.245]
[1729058530680,3.2447,154.11,154.08,3.245]
[1729058530988,8.95,154.13,154.09,3.2448]
[1729058531181,8.95,154.13,154.09,12.1948]
[1729058531380,3.2443,154.12,154.09,12.1948]
[1729058533589,8.95,154.12,154.08,3.2452]
[1729058534285,8.95,154.12,154.07,13.59]
[1729058534481,12.1945,154.12,154.09,3.2449]
[1729058534975,3.2445,154.12,154.09,3.2449]
[1729058535178,3.2445,154.12,154.09,12.1949]
[1729058537182,8.95,154.14,154.09,8.95]
[1729058537384,3.7782,154.21,154.12,8.95]
[1729058537692,8.95,154.18,154.13,8.95]
[1729058537889,3.2433,154.17,154.14,3.2438]
[1729058538295,12.1931,154.18,154.13,8.95]
[1729058539595,12.1931,154.18,154.15,3.2436]
[1729058539893,3.2431,154.18,154.15,3.2436]
[1729058541695,3.2436,154.16,154.12,7.3452]
[1729058541885,3.2436,154.16,154.12,4.6265]
[1729058542786,14.02,154.18,154.12,4.6265]
[1729058542787,3.2439,154.15,154.12,4.6265]
[1729058543696,3.2441,154.14,154.11,4.64]
[1729058545396,3.2441,154.14,154.11,7.8845]
[1729058547594,3.2434,154.17,154.13,3.244]
[1729058547795,15.4713,154.2,154.12,4.64]
[1729058548003,20.1113,154.2,154.12,4.64]
[1729058548204,3.2433,154.18,154.14,3.2438]
[1729058549605,14.02,154.2,154.12,4.64]
[1729058549796,3.2437,154.16,154.12,3.2442]
[1729058549997,3.2437,154.16,154.12,7.8842]
[1729058551807,3.2437,154.16,154.13,3.2441]
[1729058560013,8.98,154.15,154.13,3.2441]
[1729058565201,3.2437,154.16,154.13,3.2441]
[1729058569018,8.98,154.19,154.15,3.2436]
[1729058570012,8.98,154.17,154.15,3.2436]
[1729058570216,8.98,154.16,154.12,4.64]
[1729058570415,8.98,154.15,154.12,4.64]
[1729058571215,8.98,154.15,154.07,1.32]
[1729058571423,8.98,154.14,154.1,3.2447]
[1729058572314,3.2441,154.13,154.1,3.2447]
[1729058573724,12.224,154.14,154.11,3.2445]
[1729058578727,12.2243,154.13,154.08,4.64]
[1729058580224,12.2243,154.13,154.1,3.2446]
[1729058581124,8.98,154.13,154.08,4.64]
[1729058581319,12.2242,154.13,154.1,3.2447]
[1729058581627,8.98,154.11,154.07,1.32]
[1729058581824,8.98,154.09,154.06,7.8855]
[1729058582023,8.98,154.08,154.05,4.64]
[1729058582217,8.98,154.08,154.04,6.0061]
[1729058582423,8.98,154.08,154.04,1.3661]
[1729058582624,8.98,154.08,154.04,3.246]
[1729058582823,3.1805204,154.12,154.04,3.246]
[1729058582824,8.98,154.07,154.04,3.246]
[1729058583231,3.2457,154.06,154.03,1.0]
[1729058583424,3.2457,154.06,154.03,5.64]
[1729058583829,8.98,154.07,154.03,5.64]
[1729058584136,12.2255,154.07,154.03,8.8862]
[1729058585030,3.2455,154.07,154.03,8.8862]
[1729058586434,12.2252,154.08,154.05,3.2458]
[1729058586631,8.98,154.1,154.05,3.2458]
[1729058586940,8.98,154.12,154.05,8.98]
[1729058587140,8.98,154.1,154.05,8.98]
[1729058588434,12.2249,154.1,154.06,3.2454]
[1729058589535,4.64,154.13,154.07,8.98]
[1729058589740,15.98527605,154.22,154.11,8.98]
[1729058589936,8.98,154.16,154.11,8.98]
[1729058590739,8.98,154.16,154.11,12.2244]
[1729058590740,3.2439,154.15,154.11,12.2244]
[1729058591329,12.2235,154.16,154.12,3.2443]
[1729058594235,3.2435,154.16,154.13,3.2441]
[1729058594542,8.98,154.18,154.13,3.2441]
[1729058594543,3.2433,154.17,154.13,3.2441]
[1729058596440,3.2432,154.18,154.14,3.2438]
[1729058596636,3.2432,154.18,154.13,8.98]
[1729058596939,3.2432,154.18,154.14,3.2439]
[1729058597140,12.2232,154.18,154.14,3.2439]
[1729058604849,3.2432,154.18,154.14,3.2439]
[1729058605048,3.2427,154.2,154.17,3.2432]
[1729058605753,3.2426,154.21,154.17,3.2432]
[1729058605950,8.98,154.22,154.17,3.2432]
[1729058606450,3.2425,154.21,154.17,12.2231]
[1729058607054,3.2425,154.21,154.18,3.243]
[1729058607244,12.2223,154.22,154.17,8.98]
[1729058607444,8.98,154.22,154.17,8.98]
[1729058607645,8.98,154.22,154.18,3.243]
[1729058608153,12.2227,154.2,154.15,13.62]
[1729058608349,12.2227,154.2,154.16,3.2434]
[1729058608546,8.98,154.2,154.16,3.2434]
[1729058608748,3.2429,154.19,154.16,3.2434]
[1729058609048,8.98,154.2,154.16,3.2434]
[1729058609460,12.2227,154.2,154.16,3.2434]
[1729058612058,3.2431,154.18,154.15,7.8837]
[1729058612248,3.2431,154.18,154.15,3.2437]
[1729058613058,12.2229,154.19,154.15,3.2437]
[1729058615561,3.2423,154.22,154.18,8.98]
[1729058615861,8.98,154.24,154.18,13.62]
[1729058616047,3.2422,154.23,154.19,3.2427]
[1729058616664,3.2422,154.23,154.2,12.2226]
[1729058617247,1.4386,154.26,154.2,12.2226]
[1729058617248,12.2218,154.25,154.21,3.2424]
[1729058618761,3.2415,154.26,154.21,8.98]
[1729058619169,3.2415,154.26,154.22,8.98]
[1729058619357,16.8613,154.27,154.22,8.98]
[1729058619553,16.8613,154.27,154.22,13.62]
[1729058619554,12.2213,154.27,154.22,13.62]
[1729058620961,3.2414,154.26,154.23,3.242]
[1729058621853,3.2414,154.26,154.22,16.8621]
[1729058627068,3.2414,154.26,154.23,3.242]
[1729058627773,8.98,154.27,154.22,16.8622]
[1729058628658,3.2415,154.26,154.22,16.8622]
[1729058628963,13.62,154.3,154.24,12.2217]
[1729058629264,3.2411,154.28,154.24,12.2217]
[1729058631564,4.64,154.3,154.25,8.98]
[1729058631565,8.98,154.3,154.25,8.98]
[1729058631766,3.2408,154.3,154.25,8.98]
[1729058632067,3.2408,154.3,154.27,3.2411]
[1729058632257,3.2408,154.3,154.25,8.98]
[1729058632658,3.2408,154.29,154.26,3.2413]
[1729058638875,3.2413,154.27,154.24,12.2217]
[1729058639169,8.98,154.28,154.24,8.98]
[1729058639575,3.2412,154.27,154.24,12.2218]
[1729058639768,8.98,154.3,154.25,8.98]
[1729058640274,9.98,154.31,154.25,8.98]
[1729058640974,3.2409,154.29,154.25,8.98]
[1729058641772,3.2409,154.29,154.25,12.2215]
[1729058642161,3.2409,154.29,154.27,8.98]
[1729058642362,1.0,154.31,154.27,8.98]
[1729058642667,3.2406,154.3,154.27,12.2212]
[1729058642870,3.2406,154.3,154.27,8.98]
[1729058643173,9.98,154.31,154.26,4.64]
[1729058644379,3.2409,154.29,154.26,4.64]
[1729058647878,8.98,154.29,154.24,4.64]
[1729058649173,3.2414,154.27,154.24,4.64]
[1729058650174,4.21935567,154.31,154.24,4.64]
[1729058650367,3.241,154.28,154.25,3.2416]
[1729058650573,8.98,154.3,154.26,8.98]
[1729058651376,3.2409,154.29,154.26,12.2214]
[1729058652475,3.2406,154.3,154.27,12.2211]
[1729058652674,1.0,154.31,154.29,8.98]
[1729058654371,1.0,154.31,154.29,12.2206]
[1729058654572,1.0,154.31,154.28,4.64]
[1729058654781,8.98,154.3,154.25,6.0758]
[1729058655084,3.2408,154.29,154.25,18.2972]
[1729058655677,3.2408,154.29,154.26,8.98]
[1729058656682,3.2406,154.3,154.27,12.2212]
[1729058657285,4.2405,154.31,154.27,12.2212]
[1729058663284,4.2405,154.31,154.28,3.2408]
[1729058664592,4.2405,154.31,154.28,12.2208]
[1729058666787,4.2405,154.31,154.29,8.98]
[1729058666988,1.0,154.31,154.29,8.98]
[1729058667190,1.0,154.31,154.29,12.2207]
[1729058669186,1.0,154.31,154.3,12.2206]
[1729058669392,1.0,154.31,154.3,8.98]
[1729058672591,1.0,154.31,154.25,6.0758]
[1729058672592,1.0,154.31,154.25,1.4358]
[1729058672790,1.0,154.31,154.28,4.64]
[1729058673495,3.2407,154.3,154.28,4.64]
[1729058687115,4.2405,154.31,154.28,4.64]
[1729058687320,1.0,154.31,154.28,4.64]
[1729058688312,3.2406,154.3,154.28,4.64]
[1729058691228,1.0,154.31,154.28,4.64]
[1729058692019,3.2407,154.3,154.28,4.64]
[1729058694916,1.0,154.31,154.25,1.4358]
[1729058695218,8.98,154.26,154.2,7.4099]
[1729058695623,3.242,154.24,154.2,10.6525]
[1729058695828,1.9886,154.31,154.23,8.98]
[1729058696022,8.98,154.29,154.2,7.4099]
[1729058696226,3.2413,154.27,154.23,12.2219]
[1729058697621,3.241,154.28,154.25,8.98]
[1729058699131,1.0,154.31,154.27,12.2212]
[1729058700321,1.0,154.31,154.29,8.98]
[1729058700638,1.0,154.31,154.3,8.98]
[1729058702133,1.0,154.31,154.29,8.98]
[1729058702334,1.0,154.31,154.26,3.2413]
[1729058702637,1.0,154.31,154.26,16.8613]
[1729058703035,3.2406,154.3,154.26,16.8613]
[1729058703238,3.2406,154.3,154.27,8.98]
[1729058703730,1.0,154.31,154.29,8.98]
[1729058704033,1.0,154.31,154.3,8.98]
[1729058704227,1.0,154.35,154.32,3.24]
[1729058704532,1.0,154.35,154.34,8.98]
[1729058704733,1.0,154.35,154.34,3.4]
[1729058707737,5.95,154.36,154.34,8.04]
[1729058707937,1.0,154.39,154.35,8.98]
[1729058708230,12.21613229,154.47,154.38,8.98]
[1729058708432,12.21613229,154.47,154.42,8.98]
[1729058708843,7.0188,154.48,154.43,8.98]
[1729058708844,2.3788,154.48,154.43,8.98]
[1729058709136,8.98,154.47,154.39,4.64]
[1729058709441,8.98,154.46,154.41,8.98]
[1729058709735,4.57,154.43,154.41,8.98]
[1729058711627,4.57,154.43,154.42,8.98]
[1729058715330,4.57,154.43,154.41,4.64]
[1729058715331,7.8078,154.43,154.41,4.64]
[1729058715537,4.57,154.43,154.41,13.62]
[1729058719439,3.238,154.42,154.41,13.62]
[1729058719947,4.57,154.43,154.41,4.64]
[1729058720140,7.808,154.43,154.41,4.64]
[1729058720340,7.808,154.43,154.4,8.98]
[1729058724538,13.55,154.43,154.36,1.3051]
[1729058724742,8.98,154.42,154.36,13.64]
[1729058725045,8.98,154.4,154.36,4.66]
[1729058725241,3.239,154.38,154.36,13.64]
[1729058725744,3.2387,154.39,154.36,13.64]
[1729058731647,3.2387,154.39,154.36,8.98]
[1729058733350,4.88,154.38,154.36,8.98]
[1729058736658,6.78,154.37,154.36,8.98]
[1729058736963,6.78,154.37,154.36,12.2193]
[1729058737151,10.06,154.38,154.36,8.98]
[1729058737477,1.0,154.44,154.37,8.98]
[1729058737757,1.0,154.44,154.43,8.98]
[1729058738447,1.0,154.44,154.43,12.2178]
[1729058742552,3.38,154.44,154.43,12.2178]
[1729058744069,3.38,154.44,154.43,8.98]
[1729058744974,3.38,154.44,154.43,12.2178]
[1729058758884,8.48,154.44,154.43,12.2178]
[1729058761979,4.2368,154.48,154.43,8.98]
[1729058762179,4.2368,154.48,154.42,1.3868]
[1729058762180,4.2368,154.48,154.47,8.98]
[1729058763679,5.6168,154.48,154.47,8.98]
[1729058764279,2.38,154.48,154.47,8.98]
[1729058765486,2.38,154.48,154.47,12.217]
[1729058772375,0.48,154.49,154.48,3.2368]
[1729058772580,0.48,154.49,154.48,12.2168]
[1729058773979,4.2357,154.53,154.49,3.2364]
[1729058774286,4.2357,154.53,154.51,8.98]
[1729058775580,1.0,154.53,154.52,8.98]
[1729058777272,1.0,154.53,154.5,7.8963]
[1729058777273,1.0,154.53,154.5,4.66]
[1729058777477,1.0,154.53,154.51,8.98]
[1729058778386,4.2359,154.53,154.51,8.98]
[1729058778589,1.0,154.53,154.52,8.98]
[1729058780482,4.2357,154.53,154.52,8.98]
[1729058780682,1.0,154.53,154.52,8.98]
[1729058780984,1.0,154.53,154.52,12.2159]
[1729058782294,1.0,154.53,154.52,8.98]
[1729058783293,4.2359,154.53,154.5,13.64]
[1729058783691,1.0,154.53,154.5,13.64]
[1729058784794,1.0,154.53,154.5,16.8764]
[1729058785588,1.0,154.53,154.5,16.8564]
[1729058786395,4.2358,154.53,154.5,16.8564]
[1729058788389,4.2358,154.53,154.5,13.62]
[1729058788591,3.236,154.52,154.5,13.62]
[1729058790291,3.236,154.52,154.5,8.98]
[1729058790496,4.2358,154.53,154.5,13.62]
[1729058790887,1.0,154.53,154.5,16.8563]
[1729058791091,1.0,154.53,154.52,8.98]
[1729058792990,1.0,154.53,154.5,4.64]
[1729058793195,8.98,154.52,154.48,4.64]
[1729058793497,9.98,154.53,154.48,4.64]
[1729058793801,1.0,154.53,154.49,8.98]
[1729058794298,3.2361,154.52,154.49,8.98]
[1729058794898,1.0,154.53,154.49,8.98]
[1729058795098,3.2362,154.51,154.49,8.98]
[1729058796398,3.236,154.52,154.49,8.98]
[1729058797505,3.2362,154.51,154.49,8.98]
[1729058799000,1.0,154.53,154.52,3.2359]
[1729058799204,1.0,154.53,154.52,16.8559]
[1729058804313,1.0,154.53,154.5,3.2363]
[1729058804611,1.0,154.53,154.51,13.62]
[1729058809318,4.2359,154.53,154.51,13.62]
[1729058822846,1.0,154.53,154.51,13.62]
[1729058823036,1.0,154.53,154.52,12.2159]
[1729058828845,1.0,154.53,154.52,3.2359]
[1729058829153,1.0,154.53,154.52,12.2159]
[1729058835748,1.0,154.53,154.5,3.2362]
[1729058836051,1.0,154.53,154.51,13.62]
[1729058836359,1.0,154.53,154.5,4.64]
[1729058836748,3.2361,154.52,154.5,4.64]
[1729058837053,1.0,154.53,154.5,4.64]
[1729058837654,9.98,154.53,154.5,4.64]
[1729058838245,9.98,154.53,154.48,13.62]
[1729058838555,9.98,154.53,154.48,4.64]
[1729058838753,3.2365,154.5,154.48,4.64]
[1729058843454,4.2357,154.53,154.49,12.2165]
[1729058845746,3.236,154.52,154.49,12.2165]
[1729058847162,4.2357,154.53,154.49,12.2165]
[1729058847455,1.0,154.53,154.51,8.98]
[1729058849754,1.0,154.53,154.5,3.2362]
[1729058849961,1.0,154.53,154.49,12.2165]
[1729058849962,4.2358,154.53,154.49,12.2165]
[1729058850349,9.98,154.53,154.48,13.62]
[1729058850555,3.2363,154.51,154.48,13.62]
[1729058852253,3.2363,154.51,154.48,16.8567]
[1729058854363,1.0,154.53,154.5,8.98]
[1729058855470,1.0,154.53,154.51,3.236]
[1729058857469,1.0,154.53,154.52,16.8559]
[1729058859464,1.0,154.61,154.54,3.2354]
[1729058859662,9.98,154.61,154.56,8.98]
[1729058859964,9.98,154.61,154.56,13.62]
[1729058859965,3.2344,154.6,154.56,13.62]
[1729058863363,3.2344,154.6,154.56,8.98]
[1729058863573,3.2344,154.6,154.56,13.62]
[1729058867879,3.2344,154.6,154.56,16.8551]
[1729058871979,3.2344,154.6,154.56,7.8751]
[1729058872183,3.2344,154.6,154.56,16.8551]
[1729058872771,4.2341,154.61,154.56,16.8551]
[1729058877882,3.2345,154.6,154.56,13.62]
[1729058878083,9.98,154.61,154.56,13.62]
[1729058878383,9.98,154.61,154.56,8.98]
[1729058878584,3.2346,154.59,154.56,13.6]
[1729058880482,9.98,154.61,154.56,13.6]
[1729058880689,3.2344,154.6,154.56,16.8351]
[1729058882096,9.98,154.61,154.56,13.6]
[1729058882291,8.98,154.6,154.52,4.0577]
[1729058882494,8.98,154.6,154.54,8.98]
[1729058883085,3.2348,154.58,154.54,12.2155]
[1729058883593,3.2348,154.58,154.55,8.98]
[1729058888695,3.2348,154.58,154.55,12.2153]
[1729058890389,4.2341,154.61,154.56,12.2151]
[1729058892006,1.0,154.61,154.59,3.2344]
[1729058892191,1.0,154.61,154.6,8.98]
[1729058896290,1.0,154.61,154.6,12.2143]
[1729058898403,1.0,154.61,154.6,8.98]
[1729058899204,1.0,154.61,154.59,4.62]
[1729058900203,3.2343,154.6,154.59,4.62]
[1729058900400,1.0,154.61,154.59,4.62]
[1729058901507,4.2341,154.61,154.59,4.62]
[1729058905910,1.0,154.61,154.6,12.2143]
[1729058911109,1.0,154.61,154.6,8.98]
[1729058911421,1.0,154.61,154.59,13.6]
[1729058916119,4.2341,154.61,154.59,13.6]
[1729058918941,1.0,154.61,154.59,13.6]
[1729058919528,1.0,154.61,154.6,12.2143]
[1729058925926,1.0,154.61,154.6,4.62]